Cogmind - Beta 13 @@@ ROGUE MODE // 2024.04.21 @ 09:42:54 Player: Darch Result: Destroyed by X-57 Shotgunner with Shotgun Performance ------------- Evolutions (2) 1000 Regions Visited (5) 1000 Robots Destroyed (42) 210 Value Destroyed (1315) 1315 Prototype IDs (4) 80 Alien Tech Used (0) 0 Bonus (81) 81 TOTAL SCORE: 3686 Bonus ------- Follower Combat Kills 81 Cogmind --------- Core Integrity 0/550 Matter 300/300 Energy 100/100 System Corruption 0% Temperature Cool (0) Movement Core (200) Ox3 Location -8/Materials Parts ------- > --- POWER (1) -------- (None) > --- PROPULSION (3) --- (None) > --- UTILITY (5) ------ Medium Storage Unit Terrain Scan Processor > --- WEAPON (2) ------- (None) > --- INVENTORY (10) --- Improved Deuterium Engine Improved Deuterium Engine Faulty Aerolev Unit Structural Scanner Seismic Detector Shield Generator System Shield Rocket Launcher Peak State ------------ > --- POWER ------------ Improved Deuterium Engine > --- PROPULSION ------- Light Treads Light Treads Improved Treads > --- UTILITY ---------- Medium Storage Unit Signal Interpreter Terrain Scanner Light Armor Plating Hacking Suite > --- WEAPON ----------- Advanced Assault Cannon Advanced Assault Cannon > --- INVENTORY -------- Improved Deuterium Engine Improved Deuterium Engine Light Treads Aerolev Unit Structural Scanner Terrain Scan Processor Seismic Detector Light Armor Plating Shield Generator Rocket Launcher [Rating: 25] Favorites ----------- Power Improved Ion Engine Engine Improved Ion Engine Propulsion Light Treads Treads Light Treads Utility Medium Storage Unit Device Terrain Scanner Storage Medium Storage Unit Processor Signal Interpreter Hackware Hacking Suite Protection Light Armor Plating Weapon Heavy Assault Rifle Energy Gun Medium Laser Energy Cannon Advanced Beam Cannon Ballistic Gun Heavy Assault Rifle Ballistic Cannon Advanced Assault Cannon Launcher Rocket Launcher Build | -11 -10 -10 -9 -9 -8 ------- Run | Yrd Mat Min Mat Min Mat Slots Evolved 4 | . . . 2 . 2 Power . | . . . . . . Propulsion 1 | . . . . . 1 Utility 3 | . . . 2 . 1 Weapon . | . . . . . . Parts Attached 42 | 6 1 4 15 2 14 Power 4 | 1 . 1 1 . 1 Engine 4 | 1 . 1 1 . 1 Core . | . . . . . . Reactor . | . . . . . . Propulsion 8 | 2 . . 2 . 4 Treads 8 | 2 . . 2 . 4 Leg . | . . . . . . Wheel . | . . . . . . Hover . | . . . . . . Flight . | . . . . . . Utility 15 | 1 1 1 6 1 5 Device 6 | . 1 . 3 1 1 Storage 2 | 1 . 1 . . . Processor 2 | . . . . . 2 Hackware 1 | . . . . . 1 Protection 4 | . . . 3 . 1 Artifact . | . . . . . . Weapon 15 | 2 . 2 6 1 4 Energy Gun 1 | . . 1 . . . Energy Cannon 3 | . . . 3 . . Ballistic Gun 8 | 2 . 1 3 . 2 Ballistic Cannon 2 | . . . . . 2 Launcher 1 | . . . . 1 . Special Weapon . | . . . . . . Impact Weapon . | . . . . . . Slashing Weapon . | . . . . . . Piercing Weapon . | . . . . . . Special Melee Weapon . | . . . . . . Unidentified Prototypes 1 | . . . 1 . . Parts Lost 18 | . 2 . 3 . 13 Power 2 | . 1 . . . 1 Propulsion 5 | . . . . . 5 Utility 8 | . . . 3 . 5 Weapon 3 | . 1 . . . 2 Highest Loss Streak 7 | . 2 . 2 . 7 To Critical Strikes . | . . . . . . Average Slot Usage (%) 95 | . 96 92 95 98 93 Engine 10 | . 14 7 11 11 8 Treads 24 | . 28 28 22 22 24 Device 15 | . 11 14 20 20 9 Storage 11 | . 14 14 11 11 9 Processor 2 | . . . . . 10 Hackware 1 | . . . . . 4 Protection 6 | . . . 8 11 8 Ballistic Gun 15 | . 28 23 19 11 5 Ballistic Cannon 1 | . . . . . 7 Launcher 3 | . . . . 10 5 Naked Turns . | . . . . . . Heaviest Build 36 | 11 12 19 30 29 36 Greatest Support 63 | 40 40 40 43 43 63 Greatest Overweight (x) 9 | 3 . . . . 9 Average Overweight (x) . | . . . . . . Largest Inventory Capacity 10 | 8 8 10 10 10 10 Average Capacity 9 | 7 8 8 10 10 10 Most Carried 10 | 2 3 5 10 9 10 Average Carried 6 | 1 2 2 6 8 9 Final Capacity 10 | 8 8 10 10 10 10 Final Carried 9 | 2 3 4 8 9 8 Class Distribution -------------------- 78% | Mutant 21% | Scavenger-Mutant Dominant Class ---------------- Mutant | -10/Materials Mutant | -10/Mines Mutant | -9/Materials Mutant | -9/Mines Scavenger-Mutant | -8/Materials Resources | -11 -10 -10 -9 -9 -8 ----------- Run | Yrd Mat Min Mat Min Mat Matter Collected 1295 | 240 82 30 346 31 566 Remotely . | . . . . . . Salvage Created 1389 | . 125 . 706 37 521 Parts 91 | . 7 . 46 7 31 Haulers Intercepted . | . . . . . . Recyclers Shooed 3 | . 2 . 1 . . Parts Field Recycled . | . . . . . . Retrieved Matter . | . . . . . . Parts Self-Destructed . | . . . . . . Prevented . | . . . . . . Kills | -11 -10 -10 -9 -9 -8 ------- Run | Yrd Mat Min Mat Min Mat Combat Hostiles Destroyed 29 | . 2 . 14 1 12 Guns 15 | . 2 . 11 1 1 Cannons 13 | . . . 3 . 10 AOE 1 | . . . . . 1 Classes Destroyed 11 | . 2 . 3 2 4 Worker 4 | . 2 . 2 . . Builder 2 | . . . . . 2 Tunneler 2 | . . . . 1 1 Recycler 2 | . . . 1 . 1 Operator 1 | . . . . . 1 Watcher 2 | . . . 1 . 1 Swarmer 1 | . . . . 1 . Grunt 18 | . 2 . 9 . 7 Duelist 1 | . . . . . 1 Sentry 7 | . . . 5 . 2 Specialist 2 | . . . . . 2 Best Kill Streak 9 | . 2 . 9 1 6 Combat Bots Only 7 | . 1 . 7 1 5 Max Kills in Single Turn 2 | . 1 . 1 1 2 Gunslinging . | . . . . . . Exploded 1 | . . . . . 1 Melee . | . . . . . . Uniques/NPCs Destroyed . | . . . . . . Combat | -11 -10 -10 -9 -9 -8 -------- Run | Yrd Mat Min Mat Min Mat Hostile Shots Fired 317 | . 39 . 60 4 214 Missed 95 | . 9 . 15 2 69 Damage Taken 2801 | . 350 . 577 19 1855 Core 630 | . 36 . 34 9 551 Absorbed by Shields . | . . . . . . Core Remaining (%) 91 | 100 . 85 . 89 . Volleys Fired 106 | . 17 . 39 3 47 Largest 2 | . 2 . 2 1 2 Hottest 101 | . 40 . 101 23 96 Shots Fired 191 | . 34 . 71 4 82 Gun 109 | . 34 . 61 4 10 Cannon 80 | . . . 10 . 70 Launcher 2 | . . . . . 2 Special . | . . . . . . Kinetic 179 | . 34 . 61 4 80 Thermal 10 | . . . 10 . . Explosive 2 | . . . . . 2 Electromagnetic . | . . . . . . Robot Hit Streak 9 | . 9 . 7 2 7 Robot Miss Streak 3 | . 2 . 3 2 3 Penetration Max . | . . . . . . Secondary Targets . | . . . . . . Shots Hit Robots 125 | . 24 . 46 2 53 Core Hits 60 | . 9 1 22 3 25 Critical Kills . | . . . . . . Critical Parts Destroyed . | . . . . . . Critical Strikes 3 | . . . . . 3 Blast 3 | . . . . . 3 Melee Attacks . | . . . . . . Impact . | . . . . . . Slashing . | . . . . . . Piercing . | . . . . . . Sneak Attacks . | . . . . . . Combat Hostiles . | . . . . . . Follow-up Attacks . | . . . . . . Damage Inflicted 2586 | 11 258 15 855 42 1405 Guns 1105 | . 258 . 723 34 90 Cannons 1310 | . . . 122 . 1188 Explosions 112 | . . . . . 112 Melee . | . . . . . . Ramming 59 | 11 . 15 10 8 15 Kinetic 2293 | . 258 . 723 34 1278 Thermal 122 | . . . 122 . . Explosive 112 | . . . . . 112 Electromagnetic . | . . . . . . Impact . | . . . . . . Slashing . | . . . . . . Piercing . | . . . . . . Highest Corruption 4 | . . . 4 4 . Average Corruption 4 | . . . 4 4 . Corruption Purged . | . . . . . . Corruption Blocked . | . . . . . . Effects 16 | . . . 6 10 . Message Errors 4 | . . . 1 3 . Matter Fused 3 | . . . 2 1 . Heat Flow Errors 4 | . . . 1 3 . Energy Discharges 1 | . . . . 1 . Data Loss (minor) 2 | . . . 1 1 . Data Loss (major) 1 | . . . 1 . . Misfires 1 | . . . . 1 . Overload Shots . | . . . . . . Overflow Damage 36 | . . . . . 36 Projectiles 36 | . . . . . 36 Explosions . | . . . . . . Melee . | . . . . . . Knockbacks 22 | . . . . . 22 Impact 1 | . . . . . 1 Kinetic 18 | . . . . . 18 Secondary 3 | . . . . . 3 Self-Inflicted Damage . | . . . . . . Shots . | . . . . . . Rammed 14 | 4 . 2 4 2 2 Targets Rammed 15 | 4 . 2 5 2 2 Kicked . | . . . . . . Crushed 1 | . . . 1 . . Highest Temperature 490 | . 9 . 412 261 490 Average Temperature 171 | . 8 . 159 142 198 Received Heat Transfer 759 | . 126 . 264 . 369 Effects 13 | . . . 6 1 6 Shutdowns 3 | . . . 1 . 2 Energy Bleed 1 | . . . . . 1 Interference 4 | . . . 3 1 . Matter Decay 2 | . . . 1 . 1 Short Circuit 1 | . . . 1 . . Damage (minor) 2 | . . . . . 2 Siege Activations . | . . . . . . Robots Corrupted . | . . . . . . Combat Hostiles . | . . . . . . Parts Fried . | . . . . . . Impact Corruptions . | . . . . . . Robots Melted . | . . . . . . Combat Hostiles . | . . . . . . Parts Melted . | . . . . . . Heat Transferred 222 | . . . 222 . . Parts Sabotaged . | . . . . . . Parts Stolen . | . . . . . . Parts Stripped . | . . . . . . Power Chain Reactions . | . . . . . . Alert | -11 -10 -10 -9 -9 -8 ------- Run | Yrd Mat Min Mat Min Mat Peak Influence 258 | . 90 169 198 98 258 Initial 73 | . . 27 65 73 . Average 69 | . 28 105 70 72 76 Maximum Alert Level 1 | . . . 1 . 1 Low Security (%) 96 | 100 100 100 99 100 86 Level 1 3 | . . . . . 13 Level 2 . | . . . . . . Level 3 . | . . . . . . Level 4 . | . . . . . . Level 5 . | . . . . . . High Security . | . . . . . . Max Security . | . . . . . . Squads Dispatched 8 | . 2 . 2 . 4 Investigation 2 | . 1 . 1 . . Extermination . | . . . . . . Reinforcement 4 | . 1 . 1 . 2 Assault . | . . . . . . Garrison 2 | . . . . . 2 Intercept . | . . . . . . Searches Triggered . | . . . . . . Construction Impeded . | . . . . . . Haulers Reinforced . | . . . . . . Active Scanning Responses . | . . . . . . Cargo Convoy Interrupts . | . . . . . . Stealth | -11 -10 -10 -9 -9 -8 --------- Run | Yrd Mat Min Mat Min Mat Distress Signals 6 | . 1 . 4 . 1 Communications Jammed . | . . . . . . Distress Signals . | . . . . . . Times Spotted 56 | . 8 4 18 1 25 Peak Tracking Total 8 | . 5 5 6 1 8 Tactical Retreats 1 | . . 1 . . . Traps | -11 -10 -10 -9 -9 -8 ------- Run | Yrd Mat Min Mat Min Mat Traps Triggered 1 | . . . 1 . . Indirectly . | . . . . . . Trap Hack Attempts . | . . . . . . Triggered . | . . . . . . Disarmed . | . . . . . . Reprogrammed . | . . . . . . Reused . | . . . . . . Traps Extracted . | . . . . . . Installed . | . . . . . . Triggered . | . . . . . . Machines | -11 -10 -10 -9 -9 -8 ---------- Run | Yrd Mat Min Mat Min Mat Machines Disabled . | . . . . . . Max in Single Turn . | . . . . . . Machines Repaired . | . . . . . . Machines Dismantled . | . . . . . . Machines Sabotaged . | . . . . . . Overloaded Fab Kills . | . . . . . . Hacking | -11 -10 -10 -9 -9 -8 --------- Run | Yrd Mat Min Mat Min Mat Machines Accessed 8 | . 4 . . . 4 Terminals 7 | . 3 . . . 4 Fabricators . | . . . . . . Repair Stations . | . . . . . . Recycling Units 1 | . 1 . . . . Scanalyzers . | . . . . . . Garrison Access . | . . . . . . Total Hacks 14 | . 7 . . . 7 Successful 13 | . 6 . . . 7 Failed 1 | . 1 . . . . Catastrophic . | . . . . . . Database Lockouts . | . . . . . . Manual 6 | . 3 . . . 3 Terminals 13 | . 6 . . . 7 Fabricators . | . . . . . . Repair Stations . | . . . . . . Recycling Units 1 | . 1 . . . . Scanalyzers . | . . . . . . Garrison Access . | . . . . . . Terminal Hacks 7 | . 3 . . . 4 Record 2 | . 1 . . . 1 Prototype ID Bank 2 | . 1 . . . 1 Locate Traps 1 | . 1 . . . . Hauler Manifests 1 | . . . . . 1 Zone Layout 1 | . . . . . 1 Fabricator Hacks . | . . . . . . Repair Station Hacks . | . . . . . . Recycling Unit Hacks 1 | . 1 . . . . Report Inventory 1 | . 1 . . . . Scanalyzer . | . . . . . . Garrison Access Hacks . | . . . . . . Unauthorized Hacks 5 | . 2 . . . 3 Terminals 5 | . 2 . . . 3 Botnet 5 | . 2 . . . 3 Fabricators . | . . . . . . Repair Stations . | . . . . . . Recycling Units . | . . . . . . Scanalyzers . | . . . . . . Garrison Access . | . . . . . . Data Cores Recovered 1 | . . . . . 1 Used . | . . . . . . Hacking Detections 4 | . 1 . . . 3 Full Trace Events 1 | . 1 . . . . Feedback Events . | . . . . . . Feedback Blocked . | . . . . . . Robot Schematics Acquired . | . . . . . . Robots Built . | . . . . . . Authchips . | . . . . . . Time . | . . . . . . Total Robot Build Rating . | . . . . . . Part Schematics Acquired . | . . . . . . Parts Built . | . . . . . . Authchips . | . . . . . . Time . | . . . . . . Total Part Build Rating . | . . . . . . Parts Repaired . | . . . . . . Time . | . . . . . . Parts Recycled . | . . . . . . Recycled Matter . | . . . . . . Retrieved Matter . | . . . . . . Retrieved Components . | . . . . . . Parts Scanalyzed . | . . . . . . Part Schematics Acquired . | . . . . . . Parts Damaged . | . . . . . . Bothacking | -11 -10 -10 -9 -9 -8 ------------ Run | Yrd Mat Min Mat Min Mat Used RIF Installer . | . . . . . . Robots Hacked . | . . . . . . Non-combat . | . . . . . . Combat . | . . . . . . Robot Hacks Applied . | . . . . . . Relay Couplers Released . | . . . . . . Fabnet Peak Effective % . | . . . . . . Robots Rewired . | . . . . . . Allies Hacked . | . . . . . . Hacks Repelled . | . . . . . . Allies | -11 -10 -10 -9 -9 -8 -------- Run | Yrd Mat Min Mat Min Mat Total Allies 1 | . . 1 . . . Largest Group 1 | . . 1 . . . Highest-Rated Group 31 | . . 31 . . . Highest-Rated Ally 31 | . . 31 . . . Total Orders . | . . . . . . Ally Attacks 9 | . . 9 . . . Total Damage 189 | . . 189 . . . Kills 5 | . . 5 . . . Allies Corrupted . | . . . . . . Allies Melted . | . . . . . . Intel | -11 -10 -10 -9 -9 -8 ------- Run | Yrd Mat Min Mat Min Mat Robot Analysis Total . | . . . . . . Derelict Logs Recovered 2 | . . . . 2 . Drone Launches . | . . . . . . Drone Recoveries . | . . . . . . Exploration | -11 -10 -10 -9 -9 -8 ------------- Run | Yrd Mat Min Mat Min Mat Turns Passed 2942 | 91 341 380 887 445 798 Spaces Moved 1529 | 48 178 225 433 268 377 Core 21 | 9 . . . . 12 Treads 1508 | 39 178 225 433 268 365 Legs . | . . . . . . Wheels . | . . . . . . Hover . | . . . . . . Flight . | . . . . . . Fastest Speed 50 | 50 160 160 160 160 160 Average Speed 160 | 153 160 160 160 160 162 Slowest Speed 500 | 200 160 160 160 160 500 Overloaded Moves . | . . . . . . Propulsion Burnouts . | . . . . . . Robots Hopped . | . . . . . . Cave-ins Triggered . | . . . . . . Exploration Rate (%) 30 | 6 32 37 28 49 33 Regions Visited 5 Branch Regions 2 Pre-discovered Areas 2 | . . . . 2 . Known Exits Taken . | . . . . . . Unknown Exits Taken 5 | 1 1 1 1 1 . Scrap Searched . | . . . . . . Spaces Dug . | . . . . . . Terrain Destroyed 40 | . . . 6 . 34 Melee . | . . . . . . Projectile 25 | . . . 6 . 19 AOE 15 | . . . . . 15 Terrain Rammed . | . . . . . . Walls Destroyed . | . . . . . . Machines Disabled . | . . . . . . Actions | -11 -10 -10 -9 -9 -8 --------- Run | Yrd Mat Min Mat Min Mat Total 1823 | 60 203 244 554 280 482 Wait 78 | . 7 8 40 4 19 Move 1524 | 47 177 224 432 267 377 Hop . | . . . . . . Pick Up 32 | 3 1 3 12 2 11 Fast Attach 17 | 5 1 2 4 . 5 Attach 13 | 1 . 1 4 1 6 Detach 6 | . . 1 3 . 2 Swap 12 | . . 1 7 1 3 Drop 20 | . . 2 8 . 10 Fire 106 | . 17 . 39 3 47 Melee . | . . . . . . Ram . | . . . . . . Kick . | . . . . . . Crush 15 | 4 . 2 5 2 2 Escape Stasis . | . . . . . . Rewire . | . . . . . . Trap . | . . . . . . Miscellaneous . | . . . . . . Route ------- -11/Scrapyard -10/Materials -10/Mines (discovered 3 exits: *Mat x2 / [*Exi]) -9/Materials -9/Mines -8/Materials (discovered 1 exit: [*Fac]) History --------- Turn | Location | Event 8 | -11/Scrapyard | Discovered new exit (range 15) 92 | -11/Scrapyard | Entered Materials 209 | -10/Materials | Discovered new exit (range 15) 317 | -10/Materials | Build established: Mutant 433 | -10/Materials | Entered Mines 436 | -10/Mines | Received a Mining Laser from a helpful Derelict 492 | -10/Mines | Deemed a non-threat by the Exiles lab entrance 492 | -10/Mines | Discovered new exit (range 6) 545 | -10/Mines | A weapon hastily lodged in a ceiling crevice suddenly fell to the ground 687 | -10/Mines | Discovered new exit (range 11) 768 | -10/Mines | Discovered new exit (range 8) 813 | -10/Mines | Entered Materials 813 | -9/Materials | Evolved 2 slots: Utility x2 1654 | -9/Materials | Destroyed 7 combat bots 1655 | -9/Materials | Discovered new exit (range 7) 1700 | -9/Materials | Entered Mines 1706 | -9/Mines | Met a Derelict bent on vengeance 1707 | -9/Mines | Received a Rocket Launcher from a helpful Derelict 1774 | -9/Mines | Learned location of Storage (-9) 1803 | -9/Mines | Learned location of Recycling (-9) 1973 | -9/Mines | Discovered new exit (range 8) 2145 | -9/Mines | Entered Materials 2145 | -8/Materials | Evolved 2 slots: Propulsion x1, Utility x1 2444 | -8/Materials | Build established: Scavenger-Mutant 2474 | -8/Materials | Discovered new exit (range 5) 2700 | -8/Materials | Garrison activated, responded to threat 2817 | -8/Materials | Garrison activated, responded to threat 2820 | -8/Materials | Lost 3 parts (1n2u) 2928 | -8/Materials | Core integrity fell below 50% 2939 | -8/Materials | Core integrity fell below 20% 2943 | -8/Materials | Destroyed by X-57 Shotgunner with Shotgun Last Messages --------------- 02882_ Acquired 35 matter. 02888_ Acquired 10 matter. 02889_ ALERT: Suspicious intruders detected, dispatching Specialist reinforcements to area. 02890_ Acquired 6 matter. 02910_ Lgt. Armor Plating destroyed. 02910_ C-30 ARC bursts open, deploying its payload. 02910_ S-10 Pest unfolds itself. 02914_ Lgt. Treads destroyed. 02914_ Imp. Treads destroyed. 02919_ Imp. Deuterium Engine destroyed. 02921_ Adv. Assault Cannon destroyed. 02923_ Hpw. Shotgun destroyed. 02927_ Terrain Scanner destroyed. 02933_ S-10 Pest destroyed. 02934_ R-06 Scavenger collects Lgt. Ion Engine. 02934_ K-01 Serf collects debris. 02937_ R-06 Scavenger collects Flight Unit. 02937_ K-01 Serf collects debris. Map ----- +----------------------------------------------------+ | ??????????????????????????????????????????????? | | ??????????????????????????????????????????????? | | ??????????????????????????????????????????????? | | ??????????????????????????????????????????????? | | ??????????????????????????????????????????????? | | ??????????????????????????????????????????????? | | ??????????????????????????????????????????????? | | ??????????????????????????????????????????????? | | ??????????????????????????????????????????????? | | ??????????????????????????????????????????????? | | ??????????????????????????????????????????????? | | ????????????????????????????????????+ ??????? | | ????????????????????????????????????# ??????? | | ????????????????????????????????????# ##???## | | ????????????????????????????????????# #??#??# | | ????????????#????? ??????????#????" # #???### | | ????????????????????????????????????# ###??## | | ???????????????? ????????????# ? # ####### | | ????????????????????#?????? #??#??## ####### | | ???????? ????????????????? ? ####?### #?##### | | ??????????????????????????? ##?????# #####?# | | ???????## ???????????? ?? #?#???## #?#?#?? | | ???????## ???######## ####??## ####### | | ???????## ???############/########### ####### | | ???????## ?#?## x x | | ???????## #??## @ s g r * | | ??????### ???## s g%rk ! | | ?????#### ########+######+####### #####/### | | ?????#### ##### ## ?## # # | | ????### ### """ ## ? #?# + # | | ??##### ### """ ## ???# # # | | ??## + """ ##?"""?### # # | | ??## ## ### ##?""" ??# # !!=# | | ???? ## ### """ ##?""" #?# ### = # | | ???? ########## """ ##? ??#?# ##? # | | ??## ########## """ ##???????# #?# # | | ??## ########## ##??"????# ### # | | ?### ###########+########???????# #??? ? # | | ??## ### ########? ?? ?## #?? ? ? # | | ??## ### ##?#??????? ???# ##??#?##### | | ??## ##?????????????# #??#?####?# | | ??## ##????????????? ??######## | | ??## ###???????????? " ? | | ??## ##### !!! ##??????? ????? "%"? | | ??## ###"" !! ##?#??????????? " ? | | #??# ###"T !! ##????????????# ?????##### | | ???#^###"" ##??????????????###??????#???? | | ???#^##### ##???????????????????????????? | | ??##+##### ##??? ???????????????????##### | | ?## # ##?#?????????#??????????## | +----------------------------------------------------+ Best States ------------- Heat Dissipation 31 Energy Generation 16 Energy Capacity 290 Matter Stores 300 Matter Capacity 300 Sight Range 16 Robot Scan Range 14 Terrain Scan Range 14 Terrain Scan Density 85 Armor Coverage 150 Evasion (%) 40 Recoil Reduction 3 Offensive Hacking 10 Item Schematics ----------------- None Robot Schematics ------------------ None Fabricated ------------ Nothing Alien Tech Used ----------------- None Achievements -------------- Quantum Hacking Troublemaker Challenges ------------ None Game ------ Seed MomentumWeaponsPerforator Manual? 0 Play Time 00:56:09 Cumulative 11.6 hours Start 2024.04.18 @ 14:55:36 End 2024.04.21 @ 09:42:54 Sessions 6 Manual Loads 0 Difficulty Rogue Special Mode None Game No. 18 Rogue 17 Adventurer 1 Explorer 0 Win Type - Total 0 Types 0/0/0/0/0/0/0/0/0 Lore% 9 Gallery% 13 Achievement% 16 Wizard Run 0 Options --------- Layout 1 ASCII 0 Keyboard 1 Movement Vi Keybinds 0 Fullscreen 2 Font 24/Smallcaps Map View 50x40 Zoom Use 0% Tactical HUD 1 Map Filters NONE Filters NONE Steam 1 RUN: b765be88-501a-4b83-9d75-bc2548d289c5